fUST/lending_fUST_20250908
["ID","MTS","AMOUNT","RATE_DAILY","PERIOD"]
[384333962,1757340667600,-480.0,0.00015068,2]
[384333963,1757340667609,-480.0,0.00015068,2]
[384333964,1757340667620,-480.0,0.00015068,2]
[384333965,1757340667630,-480.0,0.00015068,2]
[384333966,1757340667640,-480.0,0.00015068,2]
[384333967,1757340667649,-480.0,0.00015068,2]
[384333968,1757340667659,-480.0,0.00015068,2]
[384333969,1757340667669,-480.0,0.00015068,2]
[384333970,1757340667679,-480.0,0.00015068,2]
[384333971,1757340667688,-480.0,0.00015068,2]
[384333972,1757340667698,-484.5778367,0.00015068,2]
[384333973,1757340667707,-480.0,0.00015068,2]
[384333974,1757340667717,-480.0,0.00015068,2]
[384333975,1757340667727,-480.0,0.00015068,2]
[384333976,1757340667736,-480.0,0.00015068,2]
[384333977,1757340667746,-480.0,0.00015068,2]
[384333978,1757340667756,-480.0,0.00015068,2]
[384333979,1757340667766,-480.0,0.00015068,2]
[384333980,1757340667776,-480.0,0.00015068,2]
[384333981,1757340667786,-480.0,0.00015068,2]
[384333982,1757340667796,-480.0,0.00015068,2]
[384333983,1757340667807,-480.0,0.00015068,2]
[384333984,1757340667818,-480.0,0.00015068,2]
[384333985,1757340667828,-480.0,0.00015068,2]
[384333986,1757340667839,-480.0,0.00015068,2]
[384333987,1757340667849,-480.0,0.00015068,2]
[384333988,1757340667858,-480.0,0.00015068,2]
[384333989,1757340667870,-480.0,0.00015068,2]
[384333990,1757340667880,-387.51941131,0.00015068,2]
[384333991,1757340667889,-480.0,0.00015068,2]
[384333992,1757340667900,-480.0,0.00015068,2]
[384333993,1757340667910,-480.0,0.00015068,2]
[384333994,1757340668004,-480.0,0.00015068,2]
[384333995,1757340668024,-480.0,0.00015068,2]
[384333996,1757340668034,-549.31,0.00015068,2]
[384333997,1757340668044,-480.0,0.00015068,2]
[384333998,1757340668054,-480.0,0.00015068,2]
[384333999,1757340668063,-875.17,0.00015068,2]
[384334000,1757340668073,-480.0,0.00015068,2]
[384334001,1757340668083,-480.0,0.00015068,2]
[384334002,1757340668092,-480.0,0.00015068,2]
[384334003,1757340668102,-480.0,0.00015068,2]
[384334004,1757340668112,-480.0,0.00015068,2]
[384334005,1757340668123,-480.0,0.00015068,2]
[384334006,1757340668133,-480.0,0.00015068,2]
[384334007,1757340668147,-480.0,0.00015068,2]
[384334008,1757340668157,-480.0,0.00015068,2]
[384334009,1757340668167,-480.0,0.00015068,2]
[384334010,1757340668177,-480.0,0.00015068,2]
[384334011,1757340668187,-480.0,0.00015068,2]
[384334012,1757340668197,-480.0,0.00015068,2]
[384334013,1757340668206,-917.92,0.00015068,2]
[384334014,1757340668217,-480.0,0.00015068,2]
[384334015,1757340668227,-480.0,0.00015068,2]
[384334016,1757340668238,-480.0,0.00015068,2]
[384334017,1757340668248,-480.0,0.00015068,2]
[384334018,1757340668258,-213.83689512,0.00015068,2]
[384334019,1757340668267,-1960.61,0.00015068,2]
[384334020,1757340668277,-485.93320305,0.00015068,2]
[384334021,1757340668287,-480.0,0.00015068,2]
[384334022,1757340668297,-480.0,0.00015068,2]
[384334023,1757340668307,-480.0,0.00015068,2]
[384334024,1757340668318,-480.0,0.00015068,2]
[384334025,1757340668329,-480.0,0.00015068,2]
[384334026,1757340668339,-535.37275048,0.00015068,2]
[384334027,1757340668350,-480.0,0.00015068,2]
[384334028,1757340668360,-480.0,0.00015068,2]
[384334029,1757340668372,-480.0,0.00015068,2]
[384334030,1757340668382,-480.0,0.00015068,2]
[384334031,1757340668392,-480.0,0.00015068,2]
[384334032,1757340668401,-480.0,0.00015068,2]
[384334033,1757340668411,-480.0,0.00015068,2]
[384334034,1757340668420,-480.0,0.00015068,2]
[384334035,1757340668431,-480.0,0.00015068,2]
[384334036,1757340668440,-480.0,0.00015068,2]
[384334037,1757340668450,-480.0,0.00015068,2]
[384334038,1757340668459,-480.0,0.00015068,2]
[384334039,1757340668469,-1374.37,0.00015068,2]
[384334040,1757340668479,-480.0,0.00015068,2]
[384334041,1757340668488,-480.0,0.00015068,2]
[384334042,1757340668498,-480.0,0.00015068,2]
[384334043,1757340668507,-480.0,0.00015068,2]
[384334044,1757340668516,-480.0,0.00015068,2]
[384334045,1757340668526,-480.0,0.00015068,2]
[384334046,1757340668536,-480.0,0.00015068,2]
[384334047,1757340668545,-480.0,0.00015068,2]
[384334048,1757340668555,-480.0,0.00015068,2]
[384334049,1757340668564,-480.0,0.00015068,2]
[384334050,1757340668574,-480.0,0.00015068,2]
[384334051,1757340668584,-1360.53,0.00015068,2]
[384334052,1757340668594,-658.07,0.00015068,2]
[384334053,1757340668604,-480.0,0.00015068,2]
[384334054,1757340668613,-613.55,0.00015068,2]
[384334055,1757340668624,-329.22083821,0.00015068,2]
[384334056,1757340668634,-480.0,0.00015068,2]
[384334057,1757340668643,-480.0,0.00015068,2]
[384334058,1757340668653,-531.87,0.00015068,2]
[384334059,1757340668664,-480.0,0.00015068,2]
[384334060,1757340668673,-480.0,0.00015068,2]
[384334061,1757340668683,-618.51,0.00015068,2]
[384334062,1757340668692,-480.0,0.00015068,2]
[384334063,1757340668702,-480.0,0.00015068,2]
[384334064,1757340668711,-400.55611251,0.00015068,2]
[384334065,1757340668721,-480.0,0.00015068,2]
[384334066,1757340668731,-480.0,0.00015068,2]
[384334067,1757340668741,-484.86,0.00015068,2]
[384334068,1757340668750,-480.0,0.00015068,2]
[384334069,1757340668760,-480.0,0.00015068,2]
[384334070,1757340668770,-480.0,0.00015068,2]
[384334071,1757340668779,-480.0,0.00015068,2]
[384334072,1757340668789,-480.0,0.00015068,2]
[384334073,1757340668798,-480.0,0.00015068,2]
[384334074,1757340668808,-480.0,0.00015068,2]
[384334075,1757340668817,-480.0,0.00015068,2]
[384334076,1757340668826,-480.0,0.00015068,2]
[384334077,1757340668837,-480.0,0.00015068,2]
[384334078,1757340668846,-480.0,0.00015068,2]
[384334079,1757340668856,-2382.86,0.00015068,2]
[384334080,1757340668865,-480.0,0.00015068,2]
[384334081,1757340668876,-480.0,0.00015068,2]
[384334082,1757340668886,-480.0,0.00015068,2]
[384334083,1757340668896,-480.0,0.00015068,2]
[384334084,1757340668906,-480.0,0.00015068,2]
[384334085,1757340668915,-562.35,0.00015068,2]
[384334086,1757340668925,-480.0,0.00015068,2]
[384334087,1757340668935,-480.0,0.00015068,2]
[384334088,1757340668944,-480.0,0.00015068,2]
[384334089,1757340668954,-480.0,0.00015068,2]
[384334090,1757340668964,-480.0,0.00015068,2]
[384334091,1757340668973,-480.0,0.00015068,2]
[384334092,1757340668984,-480.0,0.00015068,2]
[384334093,1757340668993,-480.0,0.00015068,2]
[384334094,1757340669003,-480.0,0.00015068,2]
[384334095,1757340669013,-480.0,0.00015068,2]
[384334096,1757340669022,-480.0,0.00015068,2]
[384334097,1757340669032,-480.0,0.00015068,2]
[384334098,1757340669041,-165.90111638,0.00015068,2]
[384334099,1757340669050,-480.0,0.00015068,2]
[384334100,1757340669060,-1000.0,0.00015068,2]
[384334101,1757340669070,-1500.0,0.00015068,2]
[384334102,1757340669079,-423.575021,0.00015068,2]
[384334103,1757340669088,-260.0,0.00015069,2]
[384334104,1757340669098,-160.0,0.00015165,2]
[384334105,1757340669107,-160.0,0.00015165,2]
[384334106,1757340669117,-160.0,0.00015165,2]
[384334107,1757340669127,-221.22220141,0.00015165,2]
[384334108,1757340669627,-50000.0,0.00013598,2]
[384334109,1757340669637,-480.0,0.00013698,2]
[384334110,1757340669646,-480.0,0.00013698,2]
[384334111,1757340669656,-481.78186912,0.00013698,2]
[384334112,1757340669665,-480.0,0.00013972,2]
[384334113,1757340669674,-480.0,0.00013972,2]
[384334114,1757340669684,-480.0,0.00014246,2]
[384334115,1757340669693,-480.0,0.00014246,2]
[384334116,1757340669702,-480.0,0.00014246,2]
[384334117,1757340669711,-480.0,0.0001452,2]
[384334118,1757340669721,-480.0,0.0001452,2]
[384334119,1757340669730,-480.0,0.00014794,2]
[384334120,1757340669740,-480.0,0.00015068,2]
[384334121,1757340669749,-195.93252644,0.00015165,2]
[384334122,1757340669759,-160.0,0.00015165,2]
[384334123,1757340669770,-160.0,0.00015165,2]
[384334124,1757340669779,-530.71506861,0.00015165,2]
[384334125,1757340669789,-500.0,0.00015183,2]
[384334126,1757340669799,-151.0,0.000152,2]
[384334127,1757340669808,-160.0,0.00015201,2]
[384334128,1757340669817,-217.62647793,0.00015201,2]
[384334129,1757340669827,-203.26219058,0.00015201,2]
[384334130,1757340669837,-846.71598105,0.00015201,2]
[384334131,1757340669846,-233.03190505,0.00015201,2]
[384334132,1757340669856,-160.0,0.00015201,2]
[384334133,1757340669865,-160.0,0.00015201,2]
[384334134,1757340669876,-500.0,0.00015204,2]
[384334135,1757340669886,-500.0,0.00015204,2]
[384334136,1757340669896,-500.0,0.0001522,2]
[384334137,1757340669905,-500.0,0.0001522,2]
[384334138,1757340669915,-500.0,0.00015254,2]
[384334139,1757340669924,-500.0,0.00015254,2]
[384334140,1757340669933,-500.0,0.00015254,2]
[384334141,1757340669943,-500.0,0.00015261,2]
[384334142,1757340669952,-500.0,0.00015261,2]
[384334143,1757340669961,-500.0,0.00015261,2]
[384334144,1757340669971,-500.0,0.00015261,2]
[384334145,1757340669980,-500.0,0.00015261,2]
[384334146,1757340669989,-500.0,0.00015261,2]
[384334147,1757340669999,-500.0,0.00015261,2]
[384334148,1757340670008,-500.0,0.00015261,2]
[384334149,1757340670019,-500.0,0.00015261,2]
[384334150,1757340670028,-500.0,0.00015261,2]
[384334151,1757340670038,-500.06549835,0.00015261,2]
[384334152,1757340670048,-591.03125066,0.00015261,2]
[384334153,1757340670058,-260.50716999,0.00015304,2]
[384334154,1757340670067,-164.12696513,0.00015342,2]
[384334155,1757340670077,-480.0,0.00015342,2]
[384334156,1757340670087,-480.0,0.00015342,2]
[384334157,1757340670097,-480.0,0.00015342,2]
[384334158,1757340670106,-480.0,0.00015342,2]
[384334159,1757340670116,-480.0,0.00015342,2]
[384334160,1757340670127,-480.0,0.00015342,2]
[384334161,1757340670138,-493.71190571,0.00015342,2]
[384334162,1757340670150,-480.0,0.00015342,2]
[384334163,1757340670159,-213.76333603,0.00015342,2]
[384334164,1757340670169,-480.0,0.00015342,2]
[384334165,1757340670179,-480.0,0.00015342,2]
[384334166,1757340670189,-480.0,0.00015342,2]
[384334167,1757340670199,-331.74815164,0.00015342,2]
[384334168,1757340670344,-480.69639196,0.00013698,2]
[384334169,1757340670355,-148.25184836,0.00015342,2]
[384334170,1757340670365,-221.82032702,0.00015342,2]
[384334171,1757340670375,-148.12722706,0.00015342,2]
[384334172,1757340670757,-480.0,0.00013698,2]
[384334173,1757340670767,-480.0,0.00013698,2]
[384334174,1757340670776,-480.0,0.00013698,2]
[384334175,1757340670786,-486.668752,0.00013698,2]
[384334176,1757340670796,-373.64108792,0.00013972,2]
[384334177,1757340671579,344.58,0.00012329,2]
[384334178,1757340671835,344.58,0.00012205,2]
[384334179,1757340672170,287.15,0.00012329,2]
[384334180,1757340675294,344.58,0.00012083,2]
[384334181,1757340691773,37129.21439574,0.00013133,2]
[384334182,1757340696394,84.36976101,0.00013165,2]
[384334183,1757340696426,1358.99001296,0.00013165,2]
[384334184,1757340700409,500.0,0.00013133,2]
[384334185,1757340701993,286.44952224,0.00012868,2]
[384334186,1757340716608,500.0,0.00013133,2]
[384334187,1757340725546,500.0,0.00013133,2]
[384334188,1757340732649,370000.0,0.00013165,2]
[384334189,1757340742217,1657.0,0.00013132,2]
[384334190,1757340752448,1657.0,0.00013132,2]
[384334191,1757340769498,1657.0,0.00013132,2]
[384334192,1757340778292,1657.0,0.00013132,2]
[384334193,1757340785768,239.29,0.00012329,2]
[384334194,1757340795234,1357.0,0.00013132,2]
[384334195,1757340796191,199.41,0.00012329,2]
[384334196,1757340804658,1357.0,0.00013132,2]
[384334197,1757340806631,166.18,0.00012329,2]
[384334198,1757340817096,830.9,0.00012329,2]
[384334199,1757340821601,1357.0,0.00013132,2]
[384334200,1757340827799,196.06,0.00012329,2]
[384334201,1757340831868,1357.0,0.00013132,2]
[384334202,1757340841398,1357.0,0.00013132,2]
[384334204,1757340848374,163.38,0.00012329,2]
[384334205,1757340851044,1357.0,0.00013132,2]
[384334206,1757340858821,816.92,0.00012329,2]
[384334207,1757340859722,1357.0,0.00013132,2]
[384334208,1757340868161,1357.0,0.00013132,2]
[384334209,1757340876724,1357.0,0.00013132,2]
[384334210,1757340879317,-157.0,0.00013265,2]
[384334211,1757340879348,-1200.0,0.00013265,2]
[384334212,1757340879379,-300.0,0.00013529,2]
[384334213,1757340879412,-300.0,0.0001353,2]
[384334214,1757340879444,-300.0,0.0001353,2]
[384334215,1757340879477,-300.0,0.0001353,2]
[384334216,1757340879510,-300.0,0.0001353,2]
[384334217,1757340879543,-300.0,0.0001353,2]
[384334218,1757340879577,-300.0,0.0001353,2]
[384334219,1757340879609,-300.0,0.0001353,2]
[384334220,1757340879640,-300.0,0.0001353,2]
[384334221,1757340879671,-300.0,0.0001353,2]
[384334222,1757340879704,-300.0,0.0001353,2]
[384334223,1757340879737,-300.0,0.0001353,2]
[384334224,1757340879871,-300.0,0.0001353,2]
[384334225,1757340879905,-300.0,0.0001353,2]
[384334226,1757340879938,-300.0,0.0001353,2]
[384334227,1757340879972,-300.0,0.0001353,2]
[384334228,1757340880005,-600.0,0.0001353,2]
[384334229,1757340880266,-86.01,0.0001353,2]
[384334230,1757340880281,-6400.01,0.0001353,2]
[384334231,1757340880298,-10000.01,0.0001353,2]
[384334232,1757340880329,-10000.01,0.0001353,2]
[384334233,1757340880355,-10000.01,0.0001353,2]
[384334234,1757340880371,-10000.01,0.0001353,2]
[384334235,1757340880504,-3513.94,0.0001353,2]
[384334236,1757340880534,-157.0,0.00013539,2]
[384334237,1757340880582,-2658.13,0.00013598,2]
[384334238,1757340880624,-842.18434966,0.00013598,2]
[384334239,1757340880654,-3500.31434965,0.00013667,2]
[384334240,1757340880704,-1315.01260138,0.00013695,2]
[384334241,1757340880817,-10000.01,0.00013695,2]
[384334242,1757340881015,-1074.79680549,0.00013695,2]
[384334243,1757340881045,-500.0,0.00013697,2]
[384334244,1757340881077,-477.00008235,0.00013697,2]
[384334245,1757340881107,-500.0,0.00013697,2]
[384334246,1757340881137,-500.0,0.00013697,2]
[384334247,1757340881167,-500.0,0.00013697,2]
[384334248,1757340881202,-500.0,0.00013697,2]
[384334249,1757340881232,-500.0,0.00013697,2]
[384334250,1757340881263,-385.85049042,0.00013697,2]
[384334251,1757340881393,-500.0,0.00013697,2]
[384334252,1757340881422,-500.0,0.00013697,2]
[384334253,1757340881453,-500.0,0.00013697,2]
[384334254,1757340881485,-646.81188531,0.00013697,2]
[384334255,1757340881516,-500.0,0.00013697,2]
[384334256,1757340881545,-500.0,0.00013697,2]
[384334257,1757340881574,-500.0,0.00013697,2]
[384334258,1757340881604,-500.0,0.00013697,2]
[384334259,1757340881634,-500.0,0.00013697,2]
[384334260,1757340881665,-206.38622938,0.00013697,2]
[384334261,1757340881928,-293.61377062,0.00013697,2]
[384334262,1757340881959,-500.0,0.00013697,2]
[384334263,1757340881989,-500.0,0.00013697,2]
[384334264,1757340882019,-321.70803965,0.00013697,2]
[384334265,1757340882050,-500.0,0.00013697,2]
[384334266,1757340882083,-205.02439875,0.00013697,2]
[384334267,1757340882114,-500.0,0.00013697,2]
[384334268,1757340882146,-500.0,0.00013697,2]
[384334269,1757340882178,-500.0,0.00013697,2]
[384334270,1757340882211,-500.0,0.00013697,2]
[384334271,1757340882247,-500.0,0.00013697,2]
[384334272,1757340882326,-500.0,0.00013697,2]
[384334273,1757340882357,-500.0,0.00013697,2]
[384334274,1757340882388,-500.0,0.00013697,2]
[384334275,1757340882419,-438.8921356,0.00013697,2]
[384334276,1757340882451,-500.0,0.00013697,2]
[384334277,1757340882483,-500.0,0.00013697,2]
[384334278,1757340882516,-500.0,0.00013697,2]
[384334279,1757340882549,-500.0,0.00013697,2]
[384334280,1757340882580,-500.0,0.00013697,2]
[384334281,1757340882615,-500.0,0.00013697,2]
[384334282,1757340882760,-500.0,0.00013697,2]
[384334283,1757340882793,-500.0,0.00013697,2]
[384334284,1757340882825,-500.0,0.00013697,2]
[384334285,1757340882859,-500.0,0.00013697,2]
[384334286,1757340882892,-500.0,0.00013697,2]
[384334287,1757340882924,-500.0,0.00013697,2]
[384334288,1757340882960,-500.0,0.00013697,2]
[384334289,1757340882992,-500.0,0.00013697,2]
[384334290,1757340883028,-500.0,0.00013697,2]
[384334291,1757340883061,-500.0,0.00013697,2]
[384334292,1757340883184,-500.0,0.00013697,2]
[384334293,1757340883220,-500.0,0.00013697,2]
[384334294,1757340883253,-500.0,0.00013697,2]
[384334295,1757340883288,-500.0,0.00013697,2]
[384334296,1757340883320,-500.0,0.00013697,2]
[384334297,1757340883353,-500.0,0.00013697,2]
[384334298,1757340883385,-250.27483011,0.00013697,2]
[384334299,1757340883419,-500.0,0.00013697,2]
[384334300,1757340883453,-500.0,0.00013697,2]
[384334301,1757340883483,-500.0,0.00013697,2]
[384334302,1757340884661,-427.97659389,0.00013697,2]
[384334303,1757340884676,-72.02340611,0.00013697,2]
[384334304,1757340884685,-427.97659389,0.00013697,2]
[384334305,1757340884700,-72.02340611,0.00013697,2]
[384334306,1757340884710,-427.43693367,0.00013697,2]
[384334308,1757340904593,965.61352943,0.00013172,2]
[384334309,1757340928087,965.61352943,0.00013172,2]
[384334310,1757340953028,965.61352943,0.00013172,2]
[384334311,1757340979053,965.61352943,0.00013172,2]
[384334312,1757341002508,965.61352943,0.00013172,2]
[384334313,1757341022860,755.94,0.00012329,2]
[384334314,1757341026562,965.61352943,0.00013172,2]
[384334315,1757341043523,500.0,0.00012329,2]
[384334316,1757341051671,965.61352943,0.00013172,2]
[384334319,1757341064263,-965.61352943,0.00013305,2]
[384334320,1757341064295,-1200.0,0.00013558,2]
[384334321,1757341064327,-300.0,0.00013559,2]
[384334322,1757341064360,-300.0,0.00013559,2]
[384334323,1757341064392,-300.0,0.00013559,2]
[384334324,1757341064424,-1200.0,0.00013559,2]
[384334325,1757341064454,-300.0,0.00013559,2]
[384334326,1757341064595,-868.78294114,0.0001356,2]
[384334327,1757341064619,-10000.01,0.0001356,2]
[384334328,1757341064651,-1221.20725441,0.0001356,2]
[384334329,1757341064681,-2896.71758511,0.00013594,2]
[384334330,1757341064742,-1764.16032096,0.00013595,2]
[384334331,1757341064787,-1132.55726413,0.00013595,2]
[384334332,1757341064818,-2896.71758509,0.00013596,2]
[384334333,1757341064876,-1941.46030156,0.00013597,2]
[384334334,1757341064965,-10000.01,0.00013597,2]
[384334335,1757341065114,-10000.01,0.00013597,2]
[384334336,1757341065286,-10000.01,0.00013597,2]
[384334337,1757341065475,-2594.71910167,0.00013597,2]
[384334338,1757341065515,-4810.57179666,0.00013597,2]
[384334339,1757341065740,-10000.01,0.00013597,2]
[384334340,1757341065923,-10000.01,0.00013597,2]
[384334341,1757341066058,-10000.01,0.00013597,2]
[384334342,1757341066198,-2653.70678767,0.00013597,2]
[384334343,1757341066229,-1795.87883957,0.00013597,2]
[384334344,1757341066274,-1100.83874552,0.00013597,2]
[384334345,1757341066367,-365.72613757,0.00013597,2]
[384334346,1757341066397,-631.86992009,0.00013597,2]
[384334347,1757341066429,-405.20132059,0.00013597,2]
[384334348,1757341066460,-500.0,0.00013597,2]
[384334349,1757341066491,-500.0,0.00013597,2]
[384334350,1757341066522,-500.0,0.00013597,2]
[384334352,1757341066551,-270.98801507,0.00013597,2]
[384334353,1757341066584,-500.0,0.00013597,2]
[384334354,1757341066613,-376.20561005,0.00013597,2]
[384334355,1757341066642,-250.03053668,0.00013597,2]
[384334356,1757341066671,-443.85087166,0.00013597,2]
[384334357,1757341066704,-12.26517658,0.00013597,2]
[384334358,1757341066830,-487.73482342,0.00013597,2]
[384334359,1757341066862,-500.0,0.00013597,2]
[384334360,1757341066896,-500.0,0.00013597,2]
[384334361,1757341066930,-570.50243987,0.00013597,2]
[384334362,1757341066964,-500.0,0.00013597,2]
[384334363,1757341066998,-500.0,0.00013597,2]
[384334364,1757341067033,-500.0,0.00013597,2]
[384334365,1757341067067,-500.0,0.00013597,2]
[384334366,1757341067101,-500.0,0.00013597,2]
[384334367,1757341067135,-383.53547342,0.00013597,2]
[384334368,1757341067299,-116.46452658,0.00013597,2]
[384334369,1757341067334,-500.0,0.00013597,2]
[384334370,1757341067368,-500.0,0.00013597,2]
[384334371,1757341067401,-500.0,0.00013597,2]
[384334372,1757341067433,-500.0,0.00013597,2]
[384334373,1757341067466,-500.0,0.00013597,2]
[384334374,1757341067498,-500.0,0.00013597,2]
[384334375,1757341067530,-500.0,0.00013597,2]
[384334376,1757341067562,-182.74388892,0.00013597,2]
[384334377,1757341067595,-500.0,0.00013597,2]
[384334378,1757341067628,-500.0,0.00013597,2]
[384334379,1757341068346,-116.46452658,0.00013597,2]
[384334380,1757341068362,-383.53547342,0.00013597,2]
[384334381,1757341068371,-116.46452658,0.00013597,2]
[384334382,1757341068391,-383.53547342,0.00013597,2]
[384334383,1757341068401,-18.05769558,0.00013597,2]
[384334384,1757341074358,304.99,0.00012329,2]
[384334385,1757341095066,502.51,0.00012329,2]
[384334386,1757341105576,833.27,0.00012329,2]
[384334387,1757341115999,315.63,0.00012329,2]
[384334388,1757341126462,263.03,0.00012329,2]
[384334389,1757341127012,-234.20221807,0.00013193,2]
[384334390,1757341147076,438.38,0.00012329,2]
[384334391,1757341159823,-747.74008635,0.00013193,2]
[384334392,1757341159855,-981.94230442,0.00013326,2]
[384334393,1757341159888,-981.94230442,0.00013461,2]
[384334394,1757341160088,-1262.93980218,0.00013498,2]
[384334395,1757341160123,-481.94230442,0.00013597,2]
[384334396,1757341160156,-500.0,0.00013597,2]
[384334397,1757341160418,-2896.71758509,0.00013598,2]
[384334398,1757341160570,-86.99639642,0.00013598,2]
[384334399,1757341160585,-4206.57482982,0.00013598,2]
[384334400,1757341167783,876.78,0.00012329,2]
[384334401,1757341169271,-4974.51397404,0.00013462,2]
[384334402,1757341169299,-50.98205192,0.00013462,2]
[384334403,1757341169461,-10000.01,0.00013598,2]
[384334404,1757341175557,-10000.01,0.00013462,2]
[384334405,1757341175732,-10000.01,0.00013462,2]
[384334406,1757341178453,182.25,0.00012329,2]
[384334407,1757341189165,151.88,0.00012329,2]
[384334408,1757341199948,413.79,0.00012329,2]
[384334409,1757341210456,454.99,0.00012329,2]
[384334410,1757341220867,379.15,0.00012329,2]
[384334411,1757341231461,407.76,0.00012329,2]
[384334412,1757341242495,416.31,0.00012329,2]
[384334416,1757341253319,410.67,0.00012329,2]
[384334417,1757341263751,395.35,0.00012329,2]
[384334419,1757341274436,410.63,0.00012329,2]
[384334420,1757341284930,342.19,0.00012329,2]
[384334423,1757341295395,315.9,0.00012329,2]
[384334424,1757341305842,416.98,0.00012329,2]
[384334426,1757341316313,347.48,0.00012329,2]
[384334427,1757341326811,289.57,0.00012329,2]
[384334428,1757341331668,4027.2341451,0.00012714,2]
[384334429,1757341337351,241.31,0.00012329,2]
[384334431,1757341347795,201.09,0.00012329,2]
[384334432,1757341357518,300.0,0.00013062,2]
[384334433,1757341358251,167.57,0.00012329,2]
[384334435,1757341366474,300.0,0.00013062,2]
[384334436,1757341368771,837.9,0.00012329,2]
[384334437,1757341375396,300.0,0.00013062,2]
[384334440,1757341385207,992.96815143,0.00013073,2]
[384334441,1757341395127,992.96815143,0.00013073,2]
[384334442,1757341403892,992.96815143,0.00013073,2]
[384334443,1757341414394,992.96815143,0.00013073,2]
[384334444,1757341423488,992.96815143,0.00013073,2]
[384334445,1757341432595,992.96815143,0.00013073,2]
[384334446,1757341442393,992.96815143,0.00013073,2]
[384334447,1757341451530,992.96815143,0.00013073,2]
[384334448,1757341460204,194.2629095,0.00013073,2]
[384334449,1757341469744,992.96815143,0.00013073,2]
[384334450,1757341478367,992.96815143,0.00013073,2]
[384334452,1757341495513,992.96815143,0.00013073,2]
[384334453,1757341504700,992.96815143,0.00013073,2]
[384334454,1757341521829,992.96815143,0.00013073,2]
[384334455,1757341531632,992.96815143,0.00013073,2]
[384334456,1757341535227,160.0,7.9e-07,2]
[384334457,1757341536320,160.0,7.9e-07,2]
[384334458,1757341540683,160.0,7.9e-07,2]
[384334459,1757341541787,160.0,7.9e-07,2]
[384334460,1757341548449,992.96815143,0.00013073,2]
[384334461,1757341556826,992.96815143,0.00013073,2]
[384334465,1757341572707,10000.0,0.00012538,2]
[384334466,1757341573048,992.96815143,0.00013073,2]
[384334467,1757341582643,992.96815143,0.00013073,2]
[384334472,1757341599316,992.96815143,0.00013073,2]
[384334474,1757341608052,992.96815143,0.00013073,2]
[384334475,1757341625879,992.96815143,0.00013073,2]
[384334479,1757341635519,992.96815143,0.00013073,2]
[384334480,1757341652428,992.96815143,0.00013073,2]
[384334484,1757341660819,992.96815143,0.00013073,2]
[384334486,1757341677763,992.96815143,0.00013073,2]
[384334488,1757341686890,992.96815143,0.00013073,2]
[384334490,1757341703153,992.96815143,0.00013073,2]
[384334491,1757341712764,992.96815143,0.00013073,2]
[384334495,1757341729970,992.96815143,0.00013073,2]
[384334513,1757341738938,992.96815143,0.00013073,2]
[384334517,1757341756008,992.96815143,0.00013073,2]
[384334518,1757341765103,992.96815143,0.00013073,2]